Cogmind - Beta 13 @@@ ROGUE MODE // 2024.04.08 @ 03:15:02 Player: misiasty3 Result: Self-destructed Performance ------------- Evolutions (1) 500 Regions Visited (5) 1000 Robots Destroyed (10) 50 Value Destroyed (381) 381 Prototype IDs (0) 0 Alien Tech Used (0) 0 Bonus (200) 200 TOTAL SCORE: 2131 Bonus ------- Pacifist 200 Cogmind --------- Core Integrity 202/400 Matter 81/300 Energy 100/100 System Corruption 0% Temperature Cool (35) Movement Treading (160) Location -8/Mines Parts ------- > --- POWER (1) -------- (None) > --- PROPULSION (3) --- Light Treads Light Treads Aluminum Leg > --- UTILITY (3) ------ Small Storage Unit Medium Storage Unit Field Recycling Unit > --- WEAPON (2) ------- Assault Rifle Light Assault Rifle > --- INVENTORY (10) --- Light Ion Engine Light Ion Engine Nuclear Core Light Fission Core High-capacity Storage Unit Light Assault Rifle Peak State ------------ > --- POWER ------------ Light Nuclear Core > --- PROPULSION ------- Light Treads Light Treads Aluminum Leg > --- UTILITY ---------- Small Storage Unit Medium Storage Unit Field Recycling Unit > --- WEAPON ----------- Assault Rifle Light Assault Rifle > --- INVENTORY -------- Light Ion Engine Light Ion Engine Nuclear Core Light Fission Core High-capacity Storage Unit Light Assault Rifle [Rating: 13] Favorites ----------- Power Light Ion Engine Engine Light Ion Engine Power Core Light Nuclear Core Propulsion Light Treads Treads Light Treads Leg Aluminum Leg Utility Small Storage Unit Device Field Recycling Unit Storage Small Storage Unit Weapon Light Assault Rifle Ballistic Gun Light Assault Rifle Launcher Grenade Launcher Build | -11 -10 -9 -9 -9 -8 ------- Run | Yrd Mat Mat Min Exi Min Slots Evolved 2 | . . 2 . . . Power . | . . . . . . Propulsion 1 | . . 1 . . . Utility 1 | . . 1 . . . Weapon . | . . . . . . Parts Attached 27 | 6 4 1 3 3 10 Power 2 | 1 . . . . 1 Engine 1 | 1 . . . . . Core 1 | . . . . . 1 Reactor . | . . . . . . Propulsion 5 | 2 . . 1 . 2 Treads 3 | 2 . . . . 1 Leg 2 | . . . 1 . 1 Wheel . | . . . . . . Hover . | . . . . . . Flight . | . . . . . . Utility 11 | 1 4 1 2 3 . Device 1 | . . . 1 . . Storage 10 | 1 4 1 1 3 . Processor . | . . . . . . Hackware . | . . . . . . Protection . | . . . . . . Artifact . | . . . . . . Weapon 9 | 2 . . . . 7 Energy Gun . | . . . . . . Energy Cannon . | . . . . . . Ballistic Gun 6 | 2 . . . . 4 Ballistic Cannon . | . . . . . . Launcher 3 | . . . . . 3 Special Weapon . | . . . . . . Impact Weapon . | . . . . . . Slashing Weapon . | . . . . . . Piercing Weapon . | . . . . . . Special Melee Weapon . | . . . . . . Unidentified Prototypes . | . . . . . . Parts Lost 6 | . . . . . 6 Power 2 | . . . . . 2 Propulsion 2 | . . . . . 2 Utility . | . . . . . . Weapon 2 | . . . . . 2 Highest Loss Streak 5 | . . . . . 5 To Critical Strikes . | . . . . . . Average Slot Usage (%) 95 | . 91 66 100 100 92 Engine 11 | . 14 11 11 11 6 Treads 22 | . 28 22 22 22 19 Leg 8 | . . . 11 11 8 Device 8 | . . . 11 11 11 Storage 20 | . 19 11 22 22 22 Ballistic Gun 22 | . 28 22 22 22 18 Naked Turns . | . . . . . . Heaviest Build 31 | 10 13 15 28 28 31 Greatest Support 40 | 40 40 40 40 40 40 Greatest Overweight (x) 1 | 1 . . . . 1 Average Overweight (x) . | . . . . . . Largest Inventory Capacity 25 | 8 25 10 10 20 10 Average Capacity 9 | 6 8 9 10 10 10 Most Carried 10 | 5 8 9 8 10 10 Average Carried 8 | 2 5 8 6 8 7 Final Capacity 10 | 8 8 10 10 10 10 Final Carried 9 | 3 8 9 7 9 6 Class Distribution -------------------- 100% | Mutant Dominant Class ---------------- Mutant | -10/Materials Mutant | -9/Materials Mutant | -9/Mines Mutant | -9/Exiles Mutant | -8/Mines Resources | -11 -10 -9 -9 -9 -8 ----------- Run | Yrd Mat Mat Min Exi Min Matter Collected 393 | 234 . 71 . . 88 Remotely . | . . . . . . Salvage Created 326 | . . 71 . . 255 Parts 13 | . . 3 . . 10 Haulers Intercepted . | . . . . . . Recyclers Shooed 2 | . . . . . 2 Parts Field Recycled 3 | . . . 3 . . Retrieved Matter 3 | . . . 3 . . Parts Self-Destructed . | . . . . . . Prevented . | . . . . . . Kills | -11 -10 -9 -9 -9 -8 ------- Run | Yrd Mat Mat Min Exi Min Combat Hostiles Destroyed 9 | . . 2 . . 7 Guns 7 | . . 2 . . 5 AOE 2 | . . . . . 2 Classes Destroyed 3 | . . 1 . . 2 Recycler 1 | . . . . . 1 Grunt 7 | . . 2 . . 5 Brawler 2 | . . . . . 2 Best Kill Streak 7 | . . 2 . . 7 Combat Bots Only 6 | . . 2 . . 6 Max Kills in Single Turn 1 | . . 1 . . 1 Gunslinging . | . . . . . . Exploded 1 | . . . . . 1 Melee . | . . . . . . Uniques/NPCs Destroyed . | . . . . . . Combat | -11 -10 -9 -9 -9 -8 -------- Run | Yrd Mat Mat Min Exi Min Hostile Shots Fired 116 | . . 7 . . 109 Missed 33 | . . 2 . . 31 Damage Taken 1258 | . . 56 . . 1202 Core 198 | . . 12 . . 186 Absorbed by Shields . | . . . . . . Core Remaining (%) 100 | 100 100 . . . . Volleys Fired 48 | . . 8 . 2 38 Largest 2 | . . 2 . 2 2 Hottest 50 | . . 40 . 40 50 Shots Fired 83 | . . 16 . 4 63 Gun 76 | . . 16 . 4 56 Cannon . | . . . . . . Launcher 7 | . . . . . 7 Special . | . . . . . . Kinetic 76 | . . 16 . 4 56 Thermal . | . . . . . . Explosive 7 | . . . . . 7 Electromagnetic . | . . . . . . Robot Hit Streak 13 | . . 5 . . 13 Robot Miss Streak 5 | . . 2 . . 5 Penetration Max . | . . . . . . Secondary Targets . | . . . . . . Shots Hit Robots 50 | . . 11 . . 39 Core Hits 31 | . . 4 . . 27 Critical Kills . | . . . . . . Critical Parts Destroyed . | . . . . . . Critical Strikes . | . . . . . . Melee Attacks . | . . . . . . Impact . | . . . . . . Slashing . | . . . . . . Piercing . | . . . . . . Sneak Attacks . | . . . . . . Combat Hostiles . | . . . . . . Follow-up Attacks . | . . . . . . Damage Inflicted 978 | . . 93 . . 885 Guns 444 | . . 93 . . 351 Cannons . | . . . . . . Explosions 534 | . . . . . 534 Melee . | . . . . . . Ramming . | . . . . . . Kinetic 444 | . . 93 . . 351 Thermal . | . . . . . . Explosive 534 | . . . . . 534 Electromagnetic . | . . . . . . Impact . | . . . . . . Slashing . | . . . . . . Piercing . | . . . . . . Highest Corruption 2 | . 2 . . . . Average Corruption 2 | . 2 . . . . Corruption Purged . | . . . . . . Corruption Blocked . | . . . . . . Effects 4 | . 4 . . . . Message Errors 1 | . 1 . . . . Matter Fused 1 | . 1 . . . . Heat Flow Errors 2 | . 2 . . . . Overload Shots . | . . . . . . Overflow Damage . | . . . . . . Projectiles . | . . . . . . Explosions . | . . . . . . Melee . | . . . . . . Knockbacks . | . . . . . . Impact . | . . . . . . Kinetic . | . . . . . . Secondary . | . . . . . . Self-Inflicted Damage 65 | . . . . . 65 Shots 3 | . . . . . 3 Rammed . | . . . . . . Targets Rammed . | . . . . . . Kicked . | . . . . . . Crushed . | . . . . . . Highest Temperature 193 | . 144 3 . 12 193 Average Temperature 76 | . 69 3 . 7 81 Received Heat Transfer 570 | . . 30 . . 540 Siege Activations . | . . . . . . Robots Corrupted . | . . . . . . Combat Hostiles . | . . . . . . Parts Fried . | . . . . . . Impact Corruptions . | . . . . . . Robots Melted . | . . . . . . Combat Hostiles . | . . . . . . Parts Melted . | . . . . . . Heat Transferred . | . . . . . . Parts Sabotaged . | . . . . . . Parts Stolen . | . . . . . . Parts Stripped . | . . . . . . Power Chain Reactions . | . . . . . . Alert | -11 -10 -9 -9 -9 -8 ------- Run | Yrd Mat Mat Min Exi Min Peak Influence 159 | . . 55 21 . 159 Initial 21 | . . . 21 . . Average 24 | . . 18 21 . 96 Maximum Alert Level . | . . . . . . Low Security (%) 100 | 100 100 100 100 . 100 Level 1 . | . . . . . . Level 2 . | . . . . . . Level 3 . | . . . . . . Level 4 . | . . . . . . Level 5 . | . . . . . . High Security . | . . . . . . Max Security . | . . . . . . Squads Dispatched 1 | . . . . . 1 Investigation . | . . . . . . Extermination . | . . . . . . Reinforcement 1 | . . . . . 1 Assault . | . . . . . . Garrison . | . . . . . . Intercept . | . . . . . . Searches Triggered . | . . . . . . Construction Impeded 1 | . . . . . 1 Haulers Reinforced . | . . . . . . Active Scanning Responses . | . . . . . . Cargo Convoy Interrupts . | . . . . . . Stealth | -11 -10 -9 -9 -9 -8 --------- Run | Yrd Mat Mat Min Exi Min Distress Signals . | . . . . . . Communications Jammed . | . . . . . . Distress Signals . | . . . . . . Times Spotted 16 | . 1 4 . . 11 Peak Tracking Total 4 | . 1 2 . . 4 Tactical Retreats . | . . . . . . Traps | -11 -10 -9 -9 -9 -8 ------- Run | Yrd Mat Mat Min Exi Min Traps Triggered 1 | . 1 . . . . Indirectly . | . . . . . . Trap Hack Attempts . | . . . . . . Triggered . | . . . . . . Disarmed . | . . . . . . Reprogrammed . | . . . . . . Reused . | . . . . . . Traps Extracted . | . . . . . . Installed . | . . . . . . Triggered . | . . . . . . Most Traps Carried 1 | . . . 1 1 1 Machines | -11 -10 -9 -9 -9 -8 ---------- Run | Yrd Mat Mat Min Exi Min Machines Disabled . | . . . . . . Max in Single Turn . | . . . . . . Machines Repaired . | . . . . . . Machines Dismantled . | . . . . . . Machines Sabotaged . | . . . . . . Overloaded Fab Kills . | . . . . . . Hacking | -11 -10 -9 -9 -9 -8 --------- Run | Yrd Mat Mat Min Exi Min Machines Accessed 4 | . . . . 4 . Terminals . | . . . . . . Fabricators . | . . . . . . Repair Stations . | . . . . . . Recycling Units . | . . . . . . Scanalyzers . | . . . . . . Garrison Access . | . . . . . . Total Hacks 49 | . . . . 49 . Successful 49 | . . . . 49 . Failed . | . . . . . . Catastrophic . | . . . . . . Database Lockouts . | . . . . . . Manual 8 | . . . . 8 . Terminals . | . . . . . . Fabricators . | . . . . . . Repair Stations . | . . . . . . Recycling Units . | . . . . . . Scanalyzers . | . . . . . . Garrison Access . | . . . . . . Terminal Hacks 49 | . . . . 49 . Record 49 | . . . . 49 . Fabricator Hacks . | . . . . . . Repair Station Hacks . | . . . . . . Recycling Unit Hacks . | . . . . . . Scanalyzer . | . . . . . . Garrison Access Hacks . | . . . . . . Unauthorized Hacks . | . . . . . . Terminals . | . . . . . . Fabricators . | . . . . . . Repair Stations . | . . . . . . Recycling Units . | . . . . . . Scanalyzers . | . . . . . . Garrison Access . | . . . . . . Data Cores Recovered . | . . . . . . Used . | . . . . . . Hacking Detections . | . . . . . . Full Trace Events . | . . . . . . Feedback Events . | . . . . . . Feedback Blocked . | . . . . . . Robot Schematics Acquired . | . . . . . . Robots Built . | . . . . . . Authchips . | . . . . . . Time . | . . . . . . Total Robot Build Rating . | . . . . . . Part Schematics Acquired . | . . . . . . Parts Built . | . . . . . . Authchips . | . . . . . . Time . | . . . . . . Total Part Build Rating . | . . . . . . Parts Repaired . | . . . . . . Time . | . . . . . . Parts Recycled . | . . . . . . Recycled Matter . | . . . . . . Retrieved Matter . | . . . . . . Retrieved Components . | . . . . . . Parts Scanalyzed . | . . . . . . Part Schematics Acquired . | . . . . . . Parts Damaged . | . . . . . . Bothacking | -11 -10 -9 -9 -9 -8 ------------ Run | Yrd Mat Mat Min Exi Min Used RIF Installer . | . . . . . . Robots Hacked . | . . . . . . Non-combat . | . . . . . . Combat . | . . . . . . Robot Hacks Applied . | . . . . . . Relay Couplers Released . | . . . . . . Fabnet Peak Effective % . | . . . . . . Robots Rewired . | . . . . . . Allies Hacked . | . . . . . . Hacks Repelled . | . . . . . . Allies | -11 -10 -9 -9 -9 -8 -------- Run | Yrd Mat Mat Min Exi Min Total Allies . | . . . . . . Largest Group . | . . . . . . Highest-Rated Group . | . . . . . . Highest-Rated Ally . | . . . . . . Total Orders . | . . . . . . Ally Attacks . | . . . . . . Total Damage . | . . . . . . Kills . | . . . . . . Allies Corrupted . | . . . . . . Allies Melted . | . . . . . . Intel | -11 -10 -9 -9 -9 -8 ------- Run | Yrd Mat Mat Min Exi Min Robot Analysis Total . | . . . . . . Derelict Logs Recovered . | . . . . . . Drone Launches . | . . . . . . Drone Recoveries . | . . . . . . Exploration | -11 -10 -9 -9 -9 -8 ------------- Run | Yrd Mat Mat Min Exi Min Turns Passed 2724 | 69 277 240 142 1850 146 Spaces Moved 1588 | 47 160 132 87 1145 17 Core 26 | 26 . . . . . Treads 1562 | 21 160 132 87 1145 17 Legs . | . . . . . . Wheels . | . . . . . . Hover . | . . . . . . Flight . | . . . . . . Fastest Speed 50 | 50 160 160 160 160 160 Average Speed 158 | 117 160 160 160 160 169 Slowest Speed 240 | 160 160 160 160 160 240 Overloaded Moves . | . . . . . . Propulsion Burnouts . | . . . . . . Robots Hopped . | . . . . . . Cave-ins Triggered . | . . . . . . Exploration Rate (%) 26 | 4 25 11 19 93 6 Regions Visited 5 Branch Regions 3 Pre-discovered Areas 1 | . . . . 1 . Known Exits Taken . | . . . . . . Unknown Exits Taken 5 | 1 1 1 1 1 . Scrap Searched . | . . . . . . Spaces Dug 4 | . . . . . 4 Terrain Destroyed 30 | . . . . . 30 Melee . | . . . . . . Projectile . | . . . . . . AOE 30 | . . . . . 30 Terrain Rammed . | . . . . . . Walls Destroyed . | . . . . . . Machines Disabled . | . . . . . . Actions | -11 -10 -9 -9 -9 -8 --------- Run | Yrd Mat Mat Min Exi Min Total 1718 | 61 180 148 90 1161 78 Wait 27 | . 11 5 . 2 9 Move 1583 | 46 159 131 86 1144 17 Hop . | . . . . . . Pick Up 23 | 9 5 2 1 3 3 Fast Attach . | . . . . . . Attach 17 | 6 1 . 3 2 5 Detach 3 | . 1 . . 2 . Swap 10 | . 3 1 . 1 5 Drop 3 | . . 1 . 1 1 Fire 48 | . . 8 . 2 38 Melee . | . . . . . . Ram . | . . . . . . Kick . | . . . . . . Crush . | . . . . . . Escape Stasis . | . . . . . . Rewire 4 | . . . . 4 . Trap . | . . . . . . Miscellaneous . | . . . . . . Route ------- -11/Scrapyard -10/Materials -9/Materials -9/Mines -9/Exiles (discovered 2 exits: [*Min x2]) -8/Mines History --------- Turn | Location | Event 12 | -11/Scrapyard | Discovered new exit (range 16) 70 | -11/Scrapyard | Entered Materials 306 | -10/Materials | Build established: Mutant 339 | -10/Materials | Discovered new exit (range 6) 347 | -10/Materials | Entered another Materials area 347 | -9/Materials | Evolved 2 slots: Propulsion x1, Utility x1 429 | -9/Materials | Discovered new exit (range 15) 587 | -9/Materials | Entered Mines 643 | -9/Mines | Found a hidden stash of uninstalled traps 721 | -9/Mines | Deemed a non-threat by the Exiles lab entrance 723 | -9/Mines | Discovered new exit (range 5) 729 | -9/Mines | Entered Exiles 757 | -9/Exiles | Discovered new exit (range 15) 797 | -9/Exiles | Met 8R-AWN 823 | -9/Exiles | Met EX-HEX 948 | -9/Exiles | Met EX-DEC 1023 | -9/Exiles | Met EX-BIN 1377 | -9/Exiles | Learned location of Zion (-7) 1439 | -9/Exiles | Discovered new exit (range 10) 1573 | -9/Exiles | Visited The Gauntlet 2579 | -9/Exiles | Entered Mines 2697 | -8/Mines | Lost 5 parts (1p2n2w) 2725 | -8/Mines | Self-destructed Last Messages --------------- 02709_ K-01 Serf collects debris. 02709_ U-05 Engineer lays Concrete. 02710_ Penetrated by Slug. 02710_ U-05 Engineer lays Concrete. 02711_ U-05 Engineer builds a Wall. 02712_ K-01 Serf collects debris. 02713_ Slug penetrates Wall. 02715_ K-01 Serf collects debris. 02716_ U-05 Engineer lays Concrete. 02717_ Slug penetrates Wall. 02717_ U-05 Engineer lays Concrete. 02718_ Lgt. Nuclear Core destroyed. 02719_ K-01 Serf collects debris. 02720_ U-05 Engineer lays Concrete. 02720_ Slug penetrates Wall. 02721_ U-05 Engineer lays Concrete. 02723_ K-01 Serf collects debris. 02723_ U-05 Engineer lays Concrete. 02723_ Slug penetrates Wall. 02724_ U-05 Engineer lays Concrete. Map ----- +----------------------------------------------------+ | ???????????????????????????? | | ???????????????????????????? | | ???????????????????????????? | | ???????????????????????????? | | ???????????????????????????? | | ???????????????????????????? | | ???????????????????????????? | | ???????????????????????????? | | ???????????????????????????? | | ???????????????????????????? | | ???????????????????????????? | | ???????????????????????????? | | ???????????????????????????? | | ???????????????????????????? | | ???????????????????????????? | | ???????????????????????????? | | ???????????????????????????? | | ???????????????????????????? | | ???????????????????????????? | | ???????????????????????????? | | ???????####???? ???????????? | | ??????# ###? ??????????? | | ?????? ### #?????????? | | ??#### #?????????? | | ??# g #????????? | | ??#@ h r ????????? | | ??# # %g k????????? | | ### # =% ????????? | | ## = %## #???????? | | # *% *## ???????????? | | # /& # #?????????????????? | | # #u ###?????????????????? | | ## #??????????????????? | | ?## ##??????????????????? | | ??## ##???????????????????? | | ???####????????????????????? | | ???????????????????????????? | | ???????????????????????????? | | ???????????????????????????? | | ???????????????????????????? | | ???????????????????????????? | | ???????????????????????????? | | ???????????????????????????? | | ???????????????????????????? | | ???????????????????????????? | | ???????????????????????????? | | ???????????????????????????? | | ???????????????????????????? | | ???????????????????????????? | | | +----------------------------------------------------+ Best States ------------- Heat Dissipation 28 Energy Generation 14 Energy Capacity 325 Matter Stores 274 Matter Capacity 300 Sight Range 16 Terrain Scan Density 10 Evasion (%) 40 Recoil Reduction 2 Item Schematics ----------------- None Robot Schematics ------------------ None Fabricated ------------ Nothing Alien Tech Used ----------------- None Achievements -------------- Librarian Tourist Challenges ------------ None Game ------ Seed TitaniumMetafieldAccelerator Manual? 0 Play Time 00:33:11 Cumulative 7.2 hours Start 2024.04.08 @ 02:26:30 End 2024.04.08 @ 03:15:02 Sessions 1 Manual Loads 0 Difficulty Rogue Special Mode None Game No. 7 Rogue 7 Adventurer 0 Explorer 0 Win Type - Total 0 Types 0/0/0/0/0/0/0/0/0 Lore% 8 Gallery% 8 Achievement% 8 Wizard Run 0 Options --------- Layout 1 ASCII 0 Keyboard 0 Movement Mouse Keybinds 0 Fullscreen 1 Font 24/Smallcaps Map View 50x35 Zoom Use 0% Tactical HUD 1 Map Filters NONE Filters NONE Steam 1 RUN: db9e543a-30f0-43fb-aeea-44c3c9eaccb4